fUSD/lending_fUSD_20240521
["ID","MTS","AMOUNT","RATE_DAILY","PERIOD"]
[327646227,1716274247202,-615.34,0.00035342,6]
[327646228,1716274247211,-500.0,0.00035342,6]
[327646229,1716274247221,-695.23,0.00035342,6]
[327646230,1716274247231,-695.23,0.00035342,6]
[327646231,1716274247241,-695.23,0.00035342,6]
[327646232,1716274247251,-150.0,0.00035372,2]
[327646234,1716274247261,-164.02976074,0.00035378,8]
[327646236,1716274247271,-164.02976069,0.00035378,8]
[327646238,1716274247282,-164.02976069,0.00035378,8]
[327646240,1716274247292,-164.02976069,0.00035378,8]
[327646242,1716274247303,-164.02976069,0.00035379,8]
[327646244,1716274247313,-164.02976069,0.00035379,8]
[327646246,1716274247326,-164.02976069,0.00035379,8]
[327646249,1716274247336,-164.02976069,0.00035379,8]
[327646251,1716274247346,-672.21296614,0.00035379,31]
[327646253,1716274247355,-208.0,0.0003538,2]
[327646254,1716274247366,-672.2129661,0.00035381,31]
[327646255,1716274247376,-672.2129661,0.00035384,31]
[327646256,1716274247387,-672.2129661,0.00035386,31]
[327646257,1716274247396,-672.2129661,0.00035388,31]
[327646258,1716274247407,-672.2129661,0.00035391,31]
[327646259,1716274247416,-672.2129661,0.00035393,31]
[327646260,1716274247426,-672.2129661,0.00035395,31]
[327646261,1716274247435,-672.2129661,0.00035398,31]
[327646262,1716274247445,-189880.25729772,0.00035398,5]
[327646269,1716274451143,360.16019076,0.00017259,10]
[327646275,1716275089924,155.67,0.00013973,2]
[327646277,1716275134145,-206.55184202,0.00017257,2]
[327646282,1716275249086,-45.89441115,0.00017257,2]
[327646283,1716275249108,-240.77238663,0.00017258,2]
[327646284,1716275249131,-389.97990932,0.00017259,2]
[327646285,1716275254099,-2340.94017305,0.00017259,2]
[327646286,1716275254122,-208.72291039,0.00019351,2]
[327646287,1716275254144,-150.0,0.00019451,2]
[327646288,1716275254165,-155.0,0.0002,4]
[327646289,1716275254187,-499.99,0.00021396,2]
[327646290,1716275254208,-210.0,0.00021396,2]
[327646291,1716275254229,-163.38,0.00021918,2]
[327646292,1716275254252,-153.67101316,0.00029049,2]
[327646293,1716275254272,-1058.00044008,0.00030799,4]
[327646294,1716275254293,-3074.0,0.000308,4]
[327646295,1716275254316,-153.42116948,0.00031706,7]
[327646296,1716275254339,-1030.35,0.00032121,2]
[327646297,1716275254360,-208.72291038,0.00033296,2]
[327646298,1716275254383,-4981.9,0.00033395,2]
[327646299,1716275254405,-591.01054633,0.00033396,2]
[327646300,1716275432232,-164.75,0.00027329,2]
[327646302,1716275432243,-262.76332,0.00032224,4]
[327646328,1716275438958,-60.73124937,0.00032224,4]
[327646329,1716275438969,-978.83,0.00032225,2]
[327646330,1716275438980,-1902.3109,0.00033296,120]
[327646331,1716275438991,-217.58005367,0.00033396,2]
[327646332,1716275439002,-300.0,0.00033396,2]
[327646333,1716275439013,-250.0,0.00033423,2]
[327646334,1716275439025,-153.75,0.000335,2]
[327646335,1716275439036,-153.75,0.000335,2]
[327646336,1716275439047,-55.50537108,0.000335,2]
[327646337,1716275439060,-98.24462892,0.000335,2]
[327646338,1716275439072,-153.75,0.000335,2]
[327646339,1716275439083,-153.75,0.000335,2]
[327646340,1716275439094,-153.75,0.000335,2]
[327646341,1716275439105,-484.06491381,0.000335,2]
[327646342,1716275439119,-999.29999798,0.000335,2]
[327646343,1716275439132,-816.70025,0.000335,2]
[327646346,1716275439256,-999.858006,0.000335,2]
[327646365,1716275440594,-441.72500004,0.000335,2]
[327646366,1716275440607,-1075.18,0.000335,2]
[327646367,1716275440623,-1283.17183217,0.000335,2]
[327646368,1716275440633,-250.0,0.00033609,115]
[327646369,1716275440644,-994.48,0.0003404,2]
[327646370,1716275440655,-210.17,0.0003404,10]
[327646371,1716275440665,-160.0,0.00034057,2]
[327646372,1716275440676,-171.93,0.00034073,120]
[327646373,1716275440692,-904.0,0.00034101,2]
[327646374,1716275440703,-216.24,0.00034156,2]
[327646375,1716275440714,-4000.0,0.00034172,2]
[327646376,1716275440724,-684.16,0.00034204,2]
[327646377,1716275440736,-238.0,0.00034246,13]
[327646378,1716275440746,-164.97,0.00034467,2]
[327646379,1716275440757,-474.22755388,0.0003447,2]
[327646380,1716275440768,-8434.16923068,0.0003447,2]
[327646381,1716275440780,-978.83,0.00034488,2]
[327646382,1716275440791,-155.0,0.000347,5]
[327646383,1716275440802,-633.50637,0.0003499,2]
[327646384,1716275440812,-1248.001851,0.00035,8]
[327646385,1716275440823,-9992.74325279,0.00035,4]
[327646386,1716275440833,-252.44625317,0.00035044,4]
[327646387,1716275440844,-241.53129844,0.00035122,3]
[327646388,1716275440854,-200.0,0.00035195,30]
[327646389,1716275440865,-200.0,0.00035195,20]
[327646390,1716275440877,-1000.0,0.00035195,30]
[327646391,1716275440887,-500.0,0.00035195,10]
[327646392,1716275440898,-200.0,0.00035195,10]
[327646393,1716275440909,-153.86618259,0.00035261,7]
[327646394,1716275440919,-173.11393222,0.00035277,2]
[327646395,1716275440930,-942.45182649,0.00035299,2]
[327646396,1716275440940,-7500.0,0.000353,2]
[327646397,1716275440951,-942.45182647,0.00035308,2]
[327646398,1716275440961,-942.45182647,0.00035317,2]
[327646399,1716275440972,-942.45182647,0.00035326,2]
[327646400,1716275440982,-942.45182647,0.00035335,2]
[327646401,1716275440993,-425.57790015,0.00035342,6]
[327646402,1716275441003,-537.92254182,0.00035342,6]
[327646403,1716275441014,-500.0,0.00035342,6]
[327646404,1716275441025,-648.45,0.00035342,6]
[327646405,1716275441036,-500.0,0.00035342,6]
[327646406,1716275441048,-500.0,0.00035342,6]
[327646407,1716275441059,-500.0,0.00035342,6]
[327646408,1716275441070,-500.0,0.00035342,6]
[327646409,1716275441080,-500.0,0.00035342,6]
[327646410,1716275441090,-462.73,0.00035342,6]
[327646411,1716275441100,-500.0,0.00035342,6]
[327646412,1716275441111,-500.0,0.00035342,6]
[327646413,1716275441122,-500.0,0.00035342,6]
[327646414,1716275441132,-500.0,0.00035342,6]
[327646415,1716275441142,-500.0,0.00035342,6]
[327646416,1716275441152,-500.0,0.00035342,6]
[327646417,1716275441163,-500.0,0.00035342,6]
[327646418,1716275441173,-544.37,0.00035342,6]
[327646419,1716275441184,-500.0,0.00035342,6]
[327646420,1716275441194,-500.0,0.00035342,6]
[327646421,1716275441205,-500.0,0.00035342,6]
[327646422,1716275441215,-584.48,0.00035342,6]
[327646423,1716275441226,-500.0,0.00035342,6]
[327646424,1716275441236,-500.0,0.00035342,6]
[327646425,1716275441246,-500.0,0.00035342,6]
[327646426,1716275441257,-356.37,0.00035342,6]
[327646427,1716275441268,-500.0,0.00035342,6]
[327646428,1716275441278,-332.34,0.00035342,6]
[327646429,1716275441289,-500.0,0.00035342,6]
[327646430,1716275441299,-500.0,0.00035342,6]
[327646431,1716275441310,-388.94,0.00035342,6]
[327646432,1716275441320,-500.0,0.00035342,6]
[327646433,1716275441331,-500.0,0.00035342,6]
[327646434,1716275441341,-442.23945233,0.00035342,6]
[327646435,1716275441352,-500.0,0.00035342,6]
[327646436,1716275441363,-500.0,0.00035342,6]
[327646437,1716275441374,-341.54,0.00035342,6]
[327646438,1716275441384,-500.0,0.00035342,6]
[327646439,1716275441394,-452.04,0.00035342,6]
[327646440,1716275441405,-500.0,0.00035342,6]
[327646441,1716275441416,-500.0,0.00035342,6]
[327646442,1716275441426,-184.94,0.00035342,6]
[327646443,1716275441437,-516.25,0.00035342,2]
[327646444,1716275441448,-516.25,0.00035342,2]
[327646445,1716275441458,-516.25,0.00035342,2]
[327646446,1716275441469,-504.77992568,0.00035342,6]
[327646447,1716275441479,-587.91427364,0.00035342,6]
[327646448,1716275441489,-604.38,0.00035342,6]
[327646449,1716275441500,-500.0,0.00035342,30]
[327646450,1716275441509,-500.0,0.00035342,30]
[327646451,1716275441520,-500.0,0.00035342,30]
[327646452,1716275441530,-1111.04,0.00035342,14]
[327646453,1716275441541,-1111.04,0.00035342,15]
[327646454,1716275441552,-1111.04,0.00035342,16]
[327646455,1716275441562,-1111.04,0.00035342,17]
[327646456,1716275441573,-1111.04,0.00035342,18]
[327646457,1716275441583,-1111.04,0.00035342,19]
[327646458,1716275441594,-1111.04,0.00035342,20]
[327646459,1716275441604,-1111.04,0.00035342,21]
[327646460,1716275441614,-1111.04,0.00035342,22]
[327646461,1716275441624,-1111.04,0.00035342,23]
[327646462,1716275441635,-1111.04,0.00035342,24]
[327646463,1716275441645,-1111.04,0.00035342,25]
[327646464,1716275441656,-1111.04,0.00035342,26]
[327646465,1716275441667,-1111.04,0.00035342,27]
[327646466,1716275441677,-1111.04,0.00035342,28]
[327646467,1716275441688,-1111.04,0.00035342,29]
[327646468,1716275441702,-1111.04,0.00035342,30]
[327646469,1716275441713,-1111.04,0.00035342,31]
[327646470,1716275441722,-1111.04,0.00035342,32]
[327646471,1716275441733,-1111.04,0.00035342,33]
[327646472,1716275441744,-1111.04,0.00035342,34]
[327646473,1716275441754,-1111.04,0.00035342,35]
[327646474,1716275441764,-1111.04,0.00035342,36]
[327646475,1716275441776,-1111.16054254,0.00035342,37]
[327646476,1716275441787,-942.45182647,0.00035343,2]
[327646477,1716275441797,-150.0,0.00035345,2]
[327646478,1716275441807,-942.45182647,0.00035352,2]
[327646479,1716275441817,-1558.07,0.00035356,6]
[327646480,1716275441828,-942.45182647,0.00035361,2]
[327646481,1716275441839,-942.45182647,0.0003537,2]
[327646482,1716275441849,-500.0,0.00035377,6]
[327646483,1716275441859,-168.05324154,0.00035379,31]
[327646484,1716275441870,-942.45182647,0.00035379,2]
[327646485,1716275441880,-173.11393221,0.00035379,2]
[327646486,1716275441890,-500.0,0.0003538,2]
[327646487,1716275441900,-500.0,0.0003538,2]
[327646488,1716275441911,-500.0,0.0003538,2]
[327646489,1716275441921,-500.0,0.0003538,2]
[327646490,1716275441931,-500.0,0.0003538,2]
[327646491,1716275441943,-500.0,0.0003538,2]
[327646492,1716275441952,-500.0,0.0003538,2]
[327646493,1716275441964,-500.0,0.0003538,2]
[327646494,1716275441974,-500.0,0.0003538,2]
[327646495,1716275441984,-500.0,0.0003538,2]
[327646496,1716275441995,-500.0,0.0003538,2]
[327646497,1716275442006,-500.0,0.0003538,2]
[327646498,1716275442017,-500.0,0.0003538,2]
[327646499,1716275442027,-500.0,0.0003538,2]
[327646500,1716275442038,-500.0,0.0003538,2]
[327646501,1716275442050,-500.0,0.0003538,2]
[327646502,1716275442062,-500.0,0.0003538,2]
[327646503,1716275442073,-500.0,0.0003538,2]
[327646504,1716275442083,-500.0,0.0003538,2]
[327646505,1716275442093,-500.0,0.0003538,2]
[327646506,1716275442104,-500.0,0.0003538,2]
[327646507,1716275442114,-500.0,0.0003538,2]
[327646508,1716275442127,-500.0,0.0003538,2]
[327646509,1716275442137,-500.0,0.0003538,2]
[327646510,1716275442148,-500.0,0.0003538,2]
[327646511,1716275442159,-500.0,0.0003538,2]
[327646512,1716275442169,-500.0,0.0003538,2]
[327646513,1716275442179,-500.0,0.0003538,2]
[327646514,1716275442189,-500.0,0.0003538,2]
[327646515,1716275442199,-500.0,0.0003538,2]
[327646516,1716275442210,-500.0,0.0003538,2]
[327646517,1716275442220,-925.0,0.0003538,2]
[327646518,1716275442231,-168.05324152,0.00035386,31]
[327646519,1716275442240,-168.7755782,0.0003539,6]
[327646520,1716275442251,-500.0,0.0003539,6]
[327646521,1716275442262,-168.05324152,0.00035393,31]
[327646522,1716275442273,-573.72051391,0.00035398,7]
[327646523,1716275442284,-156.15743791,0.00035398,4]
[327646524,1716275442296,-468.97342849,0.00035398,4]
[327646525,1716275442307,-155.0,0.00035398,4]
[327646526,1716275442318,-4282.15548349,0.00035398,4]
[327646527,1716275442329,-49369.92675524,0.00035398,5]
[327646528,1716275442344,-2133.71,0.00035398,5]
[327646530,1716275443698,-351.14969996,0.0003447,2]
[327646532,1716275443716,-199748.85741585,0.00035398,5]
[327646534,1716275443730,-24330.51948348,0.00035398,5]
[327646708,1716275446037,-1000.0,0.00035398,5]
[327646758,1716275446357,-4654.61803241,0.00035398,5]
[327647145,1716275522588,150.0,0.00019725,2]
[327647146,1716275591750,159.59,0.00013973,2]
[327647148,1716276130450,162.09,0.00013973,2]
[327647150,1716276345256,-240.77238663,0.00017158,2]
[327647151,1716276345275,-206.7042,0.00017159,2]
[327647152,1716276345295,-150.0,0.00019725,2]
[327647153,1716276345315,-150.0,0.00019725,2]
[327647154,1716276345336,-154.20842833,0.00022783,2]
[327647155,1716276345357,-14.95564209,0.00023592,2]
[327647156,1716276436110,-139.25278624,0.00023592,2]
[327647157,1716276436132,-173.94,0.00023639,2]
[327647158,1716276436153,-154.20842833,0.000244,2]
[327647159,1716276436175,-155.56943574,0.00024762,2]
[327647160,1716276436197,-273.332201,0.00025082,2]
[327647161,1716276436220,-154.20842833,0.00025209,2]
[327647162,1716276436242,-87.99584899,0.00025209,2]
[327647163,1716276449115,-1424.09634748,0.00025209,2]
[327647179,1716276632657,-159.42943241,0.00021138,2]
[327647180,1716276632667,-12586.80780353,0.00025209,2]
[327647181,1716276632676,-6654.39,0.00025209,2]
[327647182,1716276632685,-154.20842833,0.00026017,2]
[327647183,1716276632694,-499.99,0.00026205,2]
[327647184,1716276632703,-150.99,0.00026205,2]
[327647185,1716276632712,-154.20842833,0.00026826,2]
[327647186,1716276632721,-154.20842833,0.00027635,2]
[327647187,1716276632731,-1086.93,0.00027806,2]
[327647188,1716276632739,-154.20842833,0.00028443,2]
[327647189,1716276632748,-240.77238663,0.00029251,2]
[327647190,1716276632758,-154.20842833,0.00029252,2]
[327647191,1716276632767,-484.64,0.00029315,2]
[327647192,1716276632776,-1362.22,0.00029319,2]
[327647193,1716276632785,-319.55,0.00029337,2]
[327647194,1716276632794,-11862.63,0.00029422,2]
[327647195,1716276632804,-500.0,0.00029553,2]
[327647196,1716276632814,-250.0,0.00029572,2]
[327647197,1716276632824,-250.0,0.00029583,2]
[327647198,1716276632834,-302.09,0.00029595,2]
[327647199,1716276632843,-250.0,0.00029629,2]
[327647200,1716276632852,-20764.6,0.0002968,2]
[327647201,1716276632862,-3692.25,0.00029777,2]
[327647202,1716276632872,-287.94,0.00029993,2]
[327647203,1716276632881,-215.18,0.00029993,2]
[327647204,1716276632892,-684.1922,0.0003,4]
[327647205,1716276632902,-154.20842833,0.00030061,2]
[327647206,1716276632920,-1086.93,0.0003007,2]
[327647207,1716276632933,-168.38,0.0003013,2]
[327647208,1716276632943,-928.0,0.000308,4]
[327647209,1716276632953,-154.20842833,0.00030869,2]
[327647210,1716276632963,-276.8,0.0003159,2]
[327647211,1716276632972,-154.20842833,0.00031678,2]
[327647212,1716276632983,-168.38,0.000317,2]
[327647213,1716276632993,-1088.13,0.0003175,2]
[327647215,1716276633003,-433.01253331,0.00031856,7]
[327647217,1716276633013,-755.58614876,0.00031856,4]
[327647220,1716276633023,-153.42116949,0.00031988,7]
[327647221,1716276633034,-1086.93,0.00032334,2]
[327647223,1716276633044,-180.0,0.00032473,2]
[327647225,1716276633055,-154.20842833,0.00032486,2]
[327647227,1716276633066,-171.13,0.00032649,2]
[327647229,1716276633076,-287.94,0.00032733,2]
[327647230,1716276633086,-5098.0,0.00033,5]
[327647231,1716276633097,-154.20842833,0.00033295,2]
[327647232,1716276633106,-267.36,0.00033385,2]
[327647233,1716276633116,-267.36,0.00033386,2]
[327647234,1716276633125,-500.0,0.00033394,6]
[327647235,1716276633137,-500.0,0.00033394,6]
[327647236,1716276633146,-500.0,0.00033394,6]
[327647237,1716276633155,-500.0,0.00033394,6]
[327647238,1716276633164,-221.35,0.00033394,6]
[327647239,1716276633173,-564.07,0.00033394,6]
[327647240,1716276633183,-618.95,0.00033394,6]
[327647241,1716276633192,-159.0,0.00033394,2]
[327647242,1716276633202,-240973.38699918,0.00033395,4]
[327647243,1716276633211,-500.0,0.00033395,6]
[327647245,1716276633221,-500.0,0.00033395,2]
[327647247,1716276633232,-166.28,0.00033396,120]
[327647249,1716276633242,-406.55657879,0.00033396,2]
[327647251,1716276633256,-12592.9554049,0.00033396,2]
[327647465,1716276639864,-270.6746688,0.00033394,6]
[327647466,1716276639878,-7775.9653312,0.00033394,6]
[327647467,1716276639889,-10274.0346688,0.00033396,2]
[327647476,1716276640328,-478.6250889,0.00033396,2]
[327647479,1716276640341,-6710.59948143,0.00033396,2]
[327647481,1716276640353,-658.62641673,0.00033396,2]
[327647497,1716276640700,-5301.01197096,0.00033396,2]
[327647499,1716276641021,-916.49999997,0.00033396,2]
[327647500,1716276641033,-961.51875694,0.00033396,2]
[327647502,1716276641311,-3145.28711561,0.00033396,2]
[327647504,1716276641323,-89762.43463132,0.00033396,2]
[327647506,1716276641333,-153.77,0.000335,2]
[327647508,1716276641343,-153.77,0.000335,2]
[327647510,1716276641352,-153.77,0.000335,2]
[327647512,1716276641362,-153.77,0.000335,2]
[327647514,1716276641371,-221.35,0.00033504,6]
[327647516,1716276641380,-564.07,0.00033504,6]
[327647518,1716276641389,-618.95,0.00033504,6]
[327647520,1716276641400,-8046.64,0.00033504,6]
[327647522,1716276641410,-500.0,0.00033505,2]
[327647523,1716276641420,-221.35,0.00033613,6]
[327647525,1716276641430,-564.07,0.00033613,6]
[327647528,1716276641440,-618.95,0.00033613,6]
[327647529,1716276641450,-8046.64,0.00033613,6]
[327647531,1716276641460,-500.0,0.00033614,2]
[327647533,1716276641470,-221.35,0.00033723,6]
[327647536,1716276641481,-564.07,0.00033723,6]
[327647537,1716276641491,-618.95,0.00033723,6]
[327647539,1716276641501,-8046.64,0.00033723,6]
[327647541,1716276641511,-500.0,0.00033724,2]
[327647543,1716276641521,-221.35,0.00033833,6]
[327647545,1716276641531,-564.07,0.00033833,6]
[327647547,1716276641542,-618.95,0.00033833,6]
[327647549,1716276641552,-500.0,0.00033833,2]
[327647551,1716276641562,-8046.64,0.00033833,6]
[327647553,1716276641572,-221.35,0.00033942,6]
[327647555,1716276641582,-564.07,0.00033942,6]
[327647557,1716276641592,-618.95,0.00033942,6]
[327647559,1716276641602,-8046.64,0.00033942,6]
[327647560,1716276641612,-500.0,0.00033943,2]
[327647561,1716276641622,-221.35,0.00034052,6]
[327647562,1716276641632,-564.07,0.00034052,6]
[327647563,1716276641642,-618.95,0.00034052,6]
[327647564,1716276641652,-8046.64,0.00034052,6]
[327647565,1716276641662,-500.0,0.00034053,2]
[327647566,1716276641672,-398.48520466,0.00034082,60]
[327647567,1716276641682,-221.35,0.00034161,6]
[327647568,1716276641691,-564.07,0.00034161,6]
[327647569,1716276641701,-618.95,0.00034161,6]
[327647570,1716276641711,-8046.64,0.00034161,6]
[327647571,1716276641720,-500.0,0.00034162,2]
[327647572,1716276641731,-221.35,0.00034271,6]
[327647573,1716276641741,-564.07,0.00034271,6]
[327647574,1716276641750,-618.95,0.00034271,6]
[327647575,1716276641760,-8046.64,0.00034271,6]
[327647576,1716276641769,-500.0,0.00034272,2]
[327647577,1716276641779,-221.35,0.00034381,6]
[327647578,1716276641789,-564.07,0.00034381,6]
[327647579,1716276641799,-618.95,0.00034381,6]
[327647580,1716276641808,-500.0,0.00034381,2]
[327647581,1716276641818,-8046.64,0.00034381,6]
[327647582,1716276641828,-221.35,0.0003449,6]
[327647583,1716276641837,-564.07,0.0003449,6]
[327647584,1716276641847,-618.95,0.0003449,6]
[327647585,1716276641856,-8046.64,0.0003449,6]
[327647586,1716276641865,-500.0,0.00034491,2]
[327647587,1716276641875,-1086.93,0.00034597,2]
[327647588,1716276641884,-221.35,0.000346,6]
[327647589,1716276641893,-564.07,0.000346,6]
[327647590,1716276641903,-618.95,0.000346,6]
[327647591,1716276641912,-8046.64,0.000346,6]
[327647592,1716276641921,-500.0,0.00034601,2]
[327647593,1716276641931,-524.14,0.00034658,2]
[327647594,1716276641940,-420.83,0.00034658,2]
[327647595,1716276641950,-151.11,0.00034658,2]
[327647596,1716276641959,-150.0,0.00034658,2]
[327647597,1716276641969,-151.34,0.00034658,2]
[327647598,1716276641979,-163.49,0.00034658,2]
[327647599,1716276641988,-150.0,0.00034658,2]
[327647600,1716276641998,-150.0,0.00034658,2]
[327647601,1716276642008,-351.89,0.00034658,2]
[327647602,1716276642018,-524.14,0.00034658,2]
[327647603,1716276642292,-150.0,0.00034658,2]
[327647604,1716276642302,-150.0,0.00034658,2]
[327647605,1716276642312,-420.83,0.00034658,2]
[327647606,1716276642322,-163.49,0.00034658,2]
[327647607,1716276642334,-351.89,0.00034658,2]
[327647608,1716276642344,-150.0,0.00034658,2]
[327647609,1716276642354,-523.45,0.00034658,2]
[327647610,1716276642365,-420.83,0.00034658,2]
[327647611,1716276642374,-150.0,0.00034658,2]
[327647612,1716276642385,-150.0,0.00034658,2]
[327647613,1716276642396,-150.0,0.00034658,2]
[327647614,1716276642406,-351.89,0.00034658,2]
[327647615,1716276642416,-163.49,0.00034658,2]
[327647616,1716276642425,-150.0,0.00034658,2]
[327647617,1716276642435,-420.83,0.00034658,2]
[327647618,1716276642444,-150.0,0.00034658,2]
[327647619,1716276642454,-351.89,0.00034658,2]
[327647620,1716276642463,-163.49,0.00034658,2]
[327647621,1716276642473,-150.0,0.00034658,2]
[327647622,1716276642482,-163.14,0.00034658,2]
[327647623,1716276642492,-419.52,0.00034658,2]
[327647624,1716276642501,-231.91,0.00034658,2]
[327647625,1716276642510,-150.0,0.00034658,2]
[327647626,1716276642519,-269.71,0.00034658,2]
[327647627,1716276642529,-305.31181114,0.000347,5]
[327647628,1716276642538,-221.35,0.00034709,6]
[327647629,1716276642547,-564.07,0.00034709,6]
[327647630,1716276642556,-618.95,0.00034709,6]
[327647631,1716276642566,-6851.25876758,0.00034709,6]
[327647649,1716276643538,-1195.38123242,0.00034709,6]
[327647653,1716276643549,-500.0,0.0003471,2]
[327647657,1716276643559,-221.35,0.00034819,6]
[327647660,1716276643570,-564.07,0.00034819,6]
[327647663,1716276643580,-618.95,0.00034819,6]
[327647666,1716276643590,-985.10521872,0.00034819,6]
[327647689,1716276643846,-7061.53478128,0.00034819,6]
[327647691,1716276643855,-500.0,0.0003482,2]
[327647693,1716276643864,-221.35,0.00034929,6]
[327647695,1716276643874,-564.07,0.00034929,6]
[327647697,1716276643883,-618.95,0.00034929,6]
[327647698,1716276643893,-500.0,0.00034929,2]
[327647700,1716276643901,-4236.35902154,0.00034929,6]
[327647702,1716276643913,-3810.28097846,0.00034929,6]
[327647704,1716276643921,-6854.56902154,0.00035,4]
[327647706,1716276643933,-3138.17423125,0.00035,4]
[327647707,1716276643942,-2000.0,0.00035,2]
[327647708,1716276643951,-2000.0,0.00035,2]
[327647709,1716276643960,-221.35,0.00035038,6]
[327647710,1716276643969,-564.07,0.00035038,6]
[327647711,1716276643979,-618.95,0.00035038,6]
[327647712,1716276643988,-8046.64,0.00035038,6]
[327647713,1716276644000,-500.0,0.00035039,2]
[327647714,1716276644009,-227.24069728,0.00035122,3]
[327647715,1716276644018,-221.35,0.00035148,6]
[327647716,1716276644028,-564.07,0.00035148,6]
[327647717,1716276644039,-618.95,0.00035148,6]
[327647718,1716276644049,-500.0,0.00035149,2]
[327647719,1716276644061,-200.0,0.00035187,30]
[327647720,1716276644072,-1000.0,0.00035193,30]
[327647721,1716276644082,-200.0,0.00035194,20]
[327647722,1716276644091,-1000.0,0.00035194,30]
[327647723,1716276644102,-1000.0,0.00035194,30]
[327647724,1716276644111,-500.0,0.00035194,10]
[327647725,1716276644121,-500.0,0.00035194,10]
[327647726,1716276644131,-200.0,0.00035194,10]
[327647727,1716276644140,-221.35,0.00035257,6]
[327647728,1716276644152,-564.07,0.00035257,6]
[327647729,1716276644162,-618.95,0.00035257,6]
[327647730,1716276644171,-500.0,0.00035258,2]
[327647731,1716276644180,-150.0,0.00035297,2]
[327647732,1716276644191,-36378.9138,0.00035298,2]
[327647733,1716276644200,-7500.0,0.00035298,2]
[327647734,1716276644210,-222.68834518,0.00035299,7]
[327647735,1716276644219,-15421.5143,0.000353,7]
[327647736,1716276644228,-308.18455351,0.000353,9]
[327647737,1716276644237,-222.68834515,0.00035306,7]
[327647738,1716276644248,-150.0,0.00035313,2]
[327647739,1716276644257,-222.68834515,0.00035314,7]
[327647740,1716276644266,-150.0,0.00035314,2]
[327647741,1716276644275,-222.68834515,0.00035321,7]
[327647742,1716276644285,-222.68834515,0.00035328,7]
[327647743,1716276644294,-222.68834515,0.00035335,8]
[327647744,1716276644303,-150.0,0.00035336,2]
[327647746,1716276644312,-500.0,0.00035342,6]
[327647748,1716276644321,-500.0,0.00035342,6]
[327647749,1716276644331,-222.68834515,0.00035343,8]
[327647752,1716276644340,-152.0,0.0003535,5]
[327647753,1716276644349,-222.68834515,0.0003535,8]
[327647755,1716276644359,-150.0,0.00035354,2]
[327647757,1716276644368,-222.68834515,0.00035357,8]
[327647759,1716276644377,-222.68834515,0.00035364,8]
[327647761,1716276644386,-221.35,0.00035367,6]
[327647763,1716276644396,-564.07,0.00035367,6]
[327647765,1716276644405,-618.95,0.00035367,6]
[327647767,1716276644415,-500.0,0.00035368,2]
[327647769,1716276644425,-150.0,0.0003537,2]
[327647770,1716276644434,-222.68834515,0.00035372,8]
[327647771,1716276644443,-222.68834515,0.00035379,8]
[327647772,1716276644452,-168.05324152,0.00035379,31]
[327647773,1716276644461,-267.36,0.00035389,2]
[327647774,1716276644470,-720.17094,0.0003539,2]
[327647775,1716276644480,-267.36,0.0003539,2]
[327647776,1716276644489,-267.36,0.0003539,2]
[327647777,1716276644499,-267.36,0.0003539,2]
[327647778,1716276644509,-150.0,0.00035393,2]
[327647779,1716276644518,-358.07148749,0.00035394,31]